Cogmind - Beta 15 @@@ ROGUE MODE // 2025.06.11 @ 12:48:38 Player: puppuppit Result: Self-destructed Performance ------------- Evolutions (3) 1500 Regions Visited (7) 1400 Robots Destroyed (8) 40 Value Destroyed (90) 90 Prototype IDs (0) 0 Alien Tech Used (0) 0 Bonus (400) 400 TOTAL SCORE: 3430 Bonus ------- Pacifist 200 Entered Garrisons 200 Cogmind --------- Core Integrity 700/700 Matter 8/300 Energy 98/100 System Corruption 0% Temperature Cool (4) Movement Flying (34) Location -7/Garrison Parts ------- > --- POWER (1) -------- (None) > --- PROPULSION (6) --- Flight Unit VTOL Module > --- UTILITY (4) ------ Hacking Suite System Shield > --- WEAPON (2) ------- (None) > --- INVENTORY (5) ---- Rocket Launcher Peak State ------------ > --- POWER ------------ Light Ion Engine > --- PROPULSION ------- Flight Unit Flight Unit Flight Unit VTOL Module VTOL Module > --- UTILITY ---------- System Shield > --- WEAPON ----------- Rocket Launcher > --- INVENTORY -------- (None) [Rating: 13] Favorites ----------- Power Light Ion Engine Engine Light Ion Engine Propulsion VTOL Module Flight Unit VTOL Module Utility System Shield Hackware System Shield Weapon Rocket Launcher Launcher Rocket Launcher Build | -11 -10 -10 -9 -9 -8 -7 -7 ------- Run | Yrd Mat Min Mat Min Mat Fac Gar Slots Evolved 6 | . . . 2 . 2 2 . Power . | . . . . . . . . Propulsion 4 | . . . 2 . 2 . . Utility 2 | . . . . . . 2 . Weapon . | . . . . . . . . Parts Attached 9 | . 2 . . 3 4 . . Power 1 | . . . . 1 . . . Engine 1 | . . . . 1 . . . Core . | . . . . . . . . Reactor . | . . . . . . . . Propulsion 5 | . 2 . . 1 2 . . Treads . | . . . . . . . . Leg . | . . . . . . . . Wheel . | . . . . . . . . Hover . | . . . . . . . . Flight 5 | . 2 . . 1 2 . . Utility 2 | . . . . . 2 . . Device . | . . . . . . . . Storage . | . . . . . . . . Processor . | . . . . . . . . Hackware 2 | . . . . . 2 . . Protection . | . . . . . . . . Artifact . | . . . . . . . . Weapon 1 | . . . . 1 . . . Energy Gun . | . . . . . . . . Energy Cannon . | . . . . . . . . Ballistic Gun . | . . . . . . . . Ballistic Cannon . | . . . . . . . . Launcher 1 | . . . . 1 . . . Special Weapon . | . . . . . . . . Impact Weapon . | . . . . . . . . Slashing Weapon . | . . . . . . . . Piercing Weapon . | . . . . . . . . Special Melee Weapon . | . . . . . . . . Unidentified Prototypes . | . . . . . . . . Parts Lost 4 | . . . . . 3 1 . Power 1 | . . . . . 1 . . Propulsion 3 | . . . . . 2 1 . Utility . | . . . . . . . . Weapon . | . . . . . . . . Highest Loss Streak 3 | . . . . . 3 1 . To Critical Strikes . | . . . . . . . . Average Backups . | . . . . . 1 1 1 Power . | . . . . . . . . Propulsion . | . . . . . . . . Utility . | . . . . . . . . Weapon . | . . . . . . 1 1 Tool/Special . | . . . . . . . . Unused Backups . | . . . . . . . . Power . | . . . . . . . . Propulsion . | . . . . . . . . Utility . | . . . . . . . . Weapon . | . . . . . . . . Tool/Special . | . . . . . . . . Average Slot Usage (%) 35 | . 14 28 22 33 51 31 30 Engine 1 | . . . . 4 4 . . Flight 24 | . 14 28 22 26 36 16 15 Hackware 8 | . . . . . 10 15 15 Peak Build Rating 13 | . 4 4 4 6 13 11 9 Average Rating 7 | . 2 4 4 5 10 9 9 On Entrance 4 | . . 4 4 4 6 11 9 Naked Turns 14 | . 14 . . . . . . Heaviest Build 4 | . . . . 4 3 . . Greatest Support 20 | 3 8 8 8 12 20 12 8 Greatest Overweight (x) . | . . . . . . . . Average Overweight (x) . | . . . . . . . . Largest Inventory Capacity 5 | 5 5 5 5 5 5 5 5 Average Capacity 5 | 5 5 5 5 5 5 5 5 Most Carried 3 | . . . . 3 2 1 1 Average Carried . | . . . . 1 . 1 1 Final Capacity 5 | 5 5 5 5 5 5 5 5 Final Carried 3 | . . . . 3 1 1 1 Class Distribution -------------------- 45% | Sprinter 43% | Hacker-Mutant 6% | Hacker-Sprinter 5% | Mutant Dominant Class ---------------- Mutant | -10/Materials Sprinter | -10/Mines Sprinter | -9/Materials Sprinter | -9/Mines Sprinter | -8/Materials Hacker-Mutant | -7/Factory Hacker-Mutant | -7/Garrison Resources | -11 -10 -10 -9 -9 -8 -7 -7 ----------- Run | Yrd Mat Min Mat Min Mat Fac Gar Matter Collected 102 | 102 . . . . . . . Remotely . | . . . . . . . . Salvage Created 32 | . . . . 12 20 . . Parts 11 | . . . . 8 3 . . Haulers Intercepted . | . . . . . . . . Recyclers Shooed . | . . . . . . . . Parts Field Recycled . | . . . . . . . . Retrieved Matter . | . . . . . . . . Parts Self-Destructed . | . . . . . . . . Prevented . | . . . . . . . . Kills | -11 -10 -10 -9 -9 -8 -7 -7 ------- Run | Yrd Mat Min Mat Min Mat Fac Gar Combat Hostiles Destroyed 8 | . . . . 4 4 . . AOE 8 | . . . . 4 4 . . Classes Destroyed 1 | . . . . 1 . . . Swarmer 8 | . . . . 4 4 . . Best Kill Streak 4 | . . . . 4 4 . . Combat Bots Only 4 | . . . . 4 4 . . Max Kills in Single Turn 3 | . . . . 3 3 . . Gunslinging . | . . . . . . . . Exploded 3 | . . . . 3 3 . . Melee . | . . . . . . . . Uniques/NPCs Destroyed . | . . . . . . . . Combat | -11 -10 -10 -9 -9 -8 -7 -7 -------- Run | Yrd Mat Min Mat Min Mat Fac Gar Hostile Shots Fired 39 | . . . 3 7 28 1 . Missed 23 | . . . 3 3 17 . . Hits 16 | . . . . 4 11 1 . Projectile 16 | . . . . 4 11 1 . Critical Strikes 1 | . . . . . . 1 . Damage Taken 239 | . . . . 37 183 19 . Core 121 | . . . . 8 113 . . Absorbed by Shields . | . . . . . . . . Core Remaining (%) 94 | 100 . 100 . 98 79 . . Volleys Fired 7 | . . . . 3 4 . . Largest 1 | . . . . 1 1 . . Hottest 33 | . . . . 33 33 . . Shots Fired 7 | . . . . 3 4 . . Gun . | . . . . . . . . Cannon . | . . . . . . . . Launcher 7 | . . . . 3 4 . . Special . | . . . . . . . . Kinetic . | . . . . . . . . Thermal . | . . . . . . . . Explosive 7 | . . . . 3 4 . . Electromagnetic . | . . . . . . . . Robot Hit Streak . | . . . . . . . . Robot Miss Streak 1 | . . . . . 1 . . Penetration Max . | . . . . . . . . Secondary Targets . | . . . . . . . . Shots Hit Robots . | . . . . . . . . Core Hits 8 | . . . . 3 5 . . Critical Kills . | . . . . . . . . Critical Parts Destroyed . | . . . . . . . . Critical Strikes . | . . . . . . . . Melee Attacks . | . . . . . . . . Impact . | . . . . . . . . Slashing . | . . . . . . . . Piercing . | . . . . . . . . Sneak Attacks . | . . . . . . . . Combat Hostiles . | . . . . . . . . Follow-up Attacks . | . . . . . . . . Damage Inflicted 535 | . . . . 250 285 . . Guns . | . . . . . . . . Cannons . | . . . . . . . . Explosions 529 | . . . . 250 279 . . Melee . | . . . . . . . . Ramming 6 | . . . . . 6 . . Kinetic . | . . . . . . . . Thermal 126 | . . . . 126 . . . Explosive 403 | . . . . 124 279 . . Electromagnetic . | . . . . . . . . Impact . | . . . . . . . . Slashing . | . . . . . . . . Piercing . | . . . . . . . . Highest Corruption 1 | . . . 1 1 . . . Average Corruption 1 | . . . 1 1 . . . Corruption Purged . | . . . . . . . . Corruption Blocked . | . . . . . . . . Overload Shots . | . . . . . . . . Overflow Damage 56 | . . . . 56 . . . Projectiles . | . . . . . . . . Explosions 56 | . . . . 56 . . . Melee . | . . . . . . . . Knockbacks . | . . . . . . . . Impact . | . . . . . . . . Kinetic . | . . . . . . . . Secondary . | . . . . . . . . Self-Inflicted Damage 7 | . . . . . 7 . . Shots 1 | . . . . . 1 . . Rammed 1 | . . . . . 1 . . Targets Rammed 1 | . . . . . 1 . . Kicked . | . . . . . . . . Crushed . | . . . . . . . . Highest Temperature 11 | . . . . . 11 5 . Average Temperature 6 | . . . . . 7 5 . Received Heat Transfer 63 | . . . . . 36 27 . Siege Activations . | . . . . . . . . Martial Activations . | . . . . . . . . Shielding Activations . | . . . . . . . . Robots Disrupted . | . . . . . . . . Combat Hostiles . | . . . . . . . . Robots Corrupted . | . . . . . . . . Combat Hostiles . | . . . . . . . . Parts Fried . | . . . . . . . . Impact Corruptions . | . . . . . . . . Robots Melted . | . . . . . . . . Combat Hostiles . | . . . . . . . . Parts Melted . | . . . . . . . . Heat Transferred 150 | . . . . 150 . . . Parts Sabotaged . | . . . . . . . . Parts Stolen . | . . . . . . . . Parts Stripped . | . . . . . . . . Power Chain Reactions . | . . . . . . . . Alert | -11 -10 -10 -9 -9 -8 -7 -7 ------- Run | Yrd Mat Min Mat Min Mat Fac Gar Maximum Alert Level 1 | . . . . . 1 . . Low Security (%) 99 | 100 100 100 100 100 99 100 100 Level 1 . | . . . . . . . . Level 2 . | . . . . . . . . Level 3 . | . . . . . . . . Level 4 . | . . . . . . . . Level 5 . | . . . . . . . . High Security . | . . . . . . . . Max Security . | . . . . . . . . Peak Influence 197 | . 8 3 . 147 197 124 67 Initial 84 | . . 3 . . 49 84 67 Average 92 | . 1 2 . 99 144 101 67 Influence Increases 488 | . 8 . . 147 228 93 12 Destroy 0b10 Robot/C 160 | . . . . 80 80 . . Destroy Leader 20 | . . . . 10 10 . . Successful Hack 23 | . 8 . . . . 3 12 Disable Machine 15 | . . . . 15 . . . Destroy Structure 45 | . . . . 27 18 . . Partial Spotted 45 | . . . . 15 15 15 . Lose Combat Pursuer 180 | . . . . . 105 75 . Influence Decreases 409 | . . 8 . 20 168 183 30 Entered New Map 216 | . . 5 . . 78 103 30 Time Decay 153 | . . 3 . 20 60 70 . Lost Part 40 | . . . . . 30 10 . Squads Dispatched 3 | . 1 . . . 2 . . Investigation 2 | . 1 . . . 1 . . Extermination . | . . . . . . . . Reinforcement 1 | . . . . . 1 . . Assault . | . . . . . . . . Garrison . | . . . . . . . . Intercept . | . . . . . . . . Searches Triggered . | . . . . . . . . Construction Impeded . | . . . . . . . . Haulers Reinforced . | . . . . . . . . Active Scanning Responses . | . . . . . . . . Cargo Convoy Interrupts . | . . . . . . . . Stealth | -11 -10 -10 -9 -9 -8 -7 -7 --------- Run | Yrd Mat Min Mat Min Mat Fac Gar Distress Signals 2 | . . . 2 . . . . Communications Jammed . | . . . . . . . . Distress Signals . | . . . . . . . . Times Spotted 34 | . . . 6 4 19 5 . Peak Tracking Total 9 | . . . 6 4 9 4 . Tactical Retreats 4 | . . . . . 2 2 . Traps | -11 -10 -10 -9 -9 -8 -7 -7 ------- Run | Yrd Mat Min Mat Min Mat Fac Gar Traps Triggered 4 | . . . . . 4 . . Indirectly . | . . . . . . . . Trap Hack Attempts . | . . . . . . . . Triggered . | . . . . . . . . Disarmed . | . . . . . . . . Reprogrammed . | . . . . . . . . Reused . | . . . . . . . . Traps Extracted . | . . . . . . . . Installed . | . . . . . . . . Triggered . | . . . . . . . . Machines | -11 -10 -10 -9 -9 -8 -7 -7 ---------- Run | Yrd Mat Min Mat Min Mat Fac Gar Machines Disabled 1 | . . . . 1 . . . Max in Single Turn 1 | . . . . 1 . . . Machines Repaired . | . . . . . . . . Machines Dismantled . | . . . . . . . . Machines Sabotaged . | . . . . . . . . Overloaded Fab Kills . | . . . . . . . . Hacking | -11 -10 -10 -9 -9 -8 -7 -7 --------- Run | Yrd Mat Min Mat Min Mat Fac Gar Machines Accessed 4 | . 1 . 1 . . 1 1 Terminals 3 | . 1 . 1 . . . 1 Fabricators . | . . . . . . . . Repair Stations . | . . . . . . . . Recycling Units . | . . . . . . . . Scanalyzers . | . . . . . . . . Garrison Access 1 | . . . . . . 1 . Total Hacks 6 | . 2 . 2 . . 1 1 Successful 3 | . 1 . . . . 1 1 Failed 3 | . 1 . 2 . . . . Catastrophic 1 | . 1 . . . . . . Database Lockouts . | . . . . . . . . Manual 4 | . 2 . 2 . . . . Terminals 5 | . 2 . 2 . . . 1 Fabricators . | . . . . . . . . Repair Stations . | . . . . . . . . Recycling Units . | . . . . . . . . Scanalyzers . | . . . . . . . . Garrison Access 1 | . . . . . . 1 . Terminal Hacks 2 | . 1 . . . . . 1 Branch Access Points 1 | . 1 . . . . . . Emergency Access Points 1 | . . . . . . . 1 Fabricator Hacks . | . . . . . . . . Repair Station Hacks . | . . . . . . . . Recycling Unit Hacks . | . . . . . . . . Scanalyzer . | . . . . . . . . Garrison Access Hacks 1 | . . . . . . 1 . Unlock Access 1 | . . . . . . 1 . Unauthorized Hacks . | . . . . . . . . Terminals . | . . . . . . . . Fabricators . | . . . . . . . . Repair Stations . | . . . . . . . . Recycling Units . | . . . . . . . . Scanalyzers . | . . . . . . . . Garrison Access . | . . . . . . . . Data Cores Recovered . | . . . . . . . . Used . | . . . . . . . . Hacking Detections 3 | . 1 . 1 . . 1 . Full Trace Events 2 | . 1 . 1 . . . . Feedback Events 1 | . . . 1 . . . . Corruption 1 | . . . 1 . . . . Feedback Blocked . | . . . . . . . . Robot Schematics Acquired . | . . . . . . . . Robots Built . | . . . . . . . . Authchips . | . . . . . . . . Time . | . . . . . . . . Total Robot Build Rating . | . . . . . . . . Part Schematics Acquired . | . . . . . . . . Parts Built . | . . . . . . . . Authchips . | . . . . . . . . Time . | . . . . . . . . Total Part Build Rating . | . . . . . . . . Parts Repaired . | . . . . . . . . Time . | . . . . . . . . Parts Recycled . | . . . . . . . . Recycled Matter . | . . . . . . . . Retrieved Matter . | . . . . . . . . Retrieved Components . | . . . . . . . . Parts Scanalyzed . | . . . . . . . . Part Schematics Acquired . | . . . . . . . . Parts Damaged . | . . . . . . . . Bothacking | -11 -10 -10 -9 -9 -8 -7 -7 ------------ Run | Yrd Mat Min Mat Min Mat Fac Gar Used RIF Installer . | . . . . . . . . Robots Hacked . | . . . . . . . . Non-combat . | . . . . . . . . Combat . | . . . . . . . . Robot Hacks Applied . | . . . . . . . . Relay Couplers Released . | . . . . . . . . Fabnet Peak Effective % . | . . . . . . . . Robots Rewired . | . . . . . . . . Allies Hacked . | . . . . . . . . Hacks Repelled . | . . . . . . . . Allies | -11 -10 -10 -9 -9 -8 -7 -7 -------- Run | Yrd Mat Min Mat Min Mat Fac Gar Total Allies . | . . . . . . . . Largest Group . | . . . . . . . . Highest-Rated Group . | . . . . . . . . Highest-Rated Ally . | . . . . . . . . Total Orders . | . . . . . . . . Ally Attacks . | . . . . . . . . Total Damage . | . . . . . . . . Kills . | . . . . . . . . Allies Corrupted . | . . . . . . . . Allies Melted . | . . . . . . . . Intel | -11 -10 -10 -9 -9 -8 -7 -7 ------- Run | Yrd Mat Min Mat Min Mat Fac Gar Active Infowar (turns) . | . . . . . . . . Robot Analysis Total . | . . . . . . . . Derelict Logs Recovered 1 | . . . . 1 . . . Drone Launches . | . . . . . . . . Drone Recoveries . | . . . . . . . . Exploration | -11 -10 -10 -9 -9 -8 -7 -7 ------------- Run | Yrd Mat Min Mat Min Mat Fac Gar Turns Passed 408 | 9 30 27 18 43 120 156 5 Spaces Moved 1143 | 18 69 83 57 89 350 463 14 Core 45 | 18 26 . . . . 1 . Treads . | . . . . . . . . Legs . | . . . . . . . . Wheels . | . . . . . . . . Hover . | . . . . . . . . Flight 1098 | . 43 83 57 89 350 462 14 Fastest Speed 26 | 50 32 32 32 30 26 30 34 Average Speed 32 | 50 38 32 32 30 28 33 34 Slowest Speed 50 | 50 50 32 32 32 35 50 34 Overloaded Moves . | . . . . . . . . Propulsion Burnouts . | . . . . . . . . Robots Hopped 19 | . . 3 . . 13 3 . Potential Cave-ins 1 | . . . . 1 . . . Cave-ins Triggered . | . . . . . . . . Exploration Rate (%) 22 | 3 19 33 13 35 52 11 15 Regions Visited 7 Branch Regions 2 Pre-discovered Areas . | . . . . . . . . Known Exits Taken 2 | . 1 . . . . 1 . Unknown Exits Taken 5 | 1 . 1 1 1 1 . . Scrap Searched . | . . . . . . . . Spaces Dug 7 | . . . . . 7 . . Terrain Destroyed 59 | . . . . 29 30 . . Melee . | . . . . . . . . Projectile . | . . . . . . . . AOE 59 | . . . . 29 30 . . Terrain Rammed . | . . . . . . . . Walls Destroyed . | . . . . . . . . Machines Disabled . | . . . . . . . . Actions | -11 -10 -10 -9 -9 -8 -7 -7 --------- Run | Yrd Mat Min Mat Min Mat Fac Gar Total 1147 | 17 70 79 56 100 351 460 14 Wait 3 | . . . . 3 . . . Move 1105 | 17 68 76 56 88 329 457 14 Hop 14 | . . 3 . . 8 3 . Pick Up 2 | . . . . 2 . . . Fast Attach 11 | . 2 . . 3 6 . . Attach 3 | . . . . . 3 . . Detach 2 | . . . . 1 1 . . Swap . | . . . . . . . . Drop . | . . . . . . . . Fire 7 | . . . . 3 4 . . Melee . | . . . . . . . . Ram . | . . . . . . . . Kick . | . . . . . . . . Crush . | . . . . . . . . Escape Stasis . | . . . . . . . . Rewire . | . . . . . . . . Trap . | . . . . . . . . Miscellaneous . | . . . . . . . . Route ------- -11/Scrapyard -10/Materials -10/Mines -9/Materials -9/Mines -8/Materials -7/Factory -7/Garrison History --------- Turn | Location | Event 4 | -11/Scrapyard | Discovered new exit (range 14) 10 | -11/Scrapyard | Entered Materials 33 | -10/Materials | Identified exit to Mines 40 | -10/Materials | Entered Mines 65 | -10/Mines | Discovered new exit (range 5) 67 | -10/Mines | Entered Materials 67 | -9/Materials | Evolved 2 slots: Propulsion x2 84 | -9/Materials | Discovered new exit (range 7) 85 | -9/Materials | Entered Mines 92 | -9/Mines | Received a Rocket Launcher from a helpful Derelict 125 | -9/Mines | Discovered new exit (range 12) 127 | -9/Mines | Learned Materials terminal intel 128 | -9/Mines | Entered Materials 128 | -8/Materials | Evolved 2 slots: Propulsion x2 129 | -8/Materials | Loaded intel: 12 terminal locations 222 | -8/Materials | Lost 3 parts (1p2n) 247 | -8/Materials | Discovered new exit (range 5) 248 | -8/Materials | Entered Factory 248 | -7/Factory | Evolved 2 slots: Utility x2 404 | -7/Factory | Identified exit to Garrison 404 | -7/Factory | Entered Garrison 409 | -7/Garrison | Self-destructed Last Messages --------------- PARAMETERS=UTILITY+2 LOCATION=UNKNOWN GOAL=ESCAPE 00256_ K-01 Serf collects debris. 00263_ VTOL Module destroyed. 00263_ Critical hit (Burn: +37). 00267_ T-07 Excavator is excavating. 00269_ ALERT: All DSF locations entering lockdown mode. 00404_ Connecting with Garrison Access... 00404_ Current location identified: Factory >>Unlock Access door unlocked. 00404_ EXIT=UNLOCKED: GARRISON LOCATION=GARRISON GOAL=ESCAPE 00409_ Connecting with Garrison Terminal... >>Access(Emergency) Found 30 emergency access points. Map updated. Map ----- +----------------------------------------------------+ | ?????????????????????????????????????????????????? | | ?????????????????????????????????????????????????? | | ?????????????????????????+?????????????????????+?? | | ?????????????????????????????????????????????????? | | ?????????????????????????????????????????????????? | | ?????????????????????????????????????????????????? | | ?????????????????????????????????????????????????? | | ?????????????????????????????????????????????????? | | ?????????????????????????????????????????????????? | | ?????????????????????????????????????????????????? | | ?????????????????????????????????????????????????? | | ?????????????????????????????????????????????????? | | ?????????????????????????????????????????????????? | | ?????????????????????????????????????????????????? | | ?????????????????????????????????????????????????? | | ?????????????????????????????????????????????????? | | ?????????????????????????????????????????????????? | | ?????????????????????????????????????????????????? | | ?????????????????????????????????????????????????? | | ?????????????????????????????????????????????????? | | ?????????????????????????????????????????????????? | | ?????????????????????????????????????????????????? | | ???????????????????????###??????#????????????????? | | ?#######################T##### #????????????????? | | ?# ^ #????????????????? | | ?# @ #????????????????? | | ?# ######### #????????????????? | | ?# #???????????????????????????? | | ?# #???????????????????????????? | | ?# #???????????????????????????? | | ?# #???????????????????????????? | | ?# #???????????????????????????? | | ?# +???????????????????????????? | | ?# #???????????????????????????? | | ?# #???????????????????????????? | | ?# #???????????????????????????? | | ?# #???????????????????????????? | | ?# #???????????????????????????? | | ?# #???????????????????????????? | | ?# #???????????????????????????? | | ?# #???????????????????????????? | | ?# #???????????????????????????? | | ?# #???????????????????????????? | | ?######### ##########???????????????????????????? | | ?????????# ?????????????????????????????????????? | | ?????????# ?????????????????????????????????????? | | ????????? ?????????????????????????????????????? | | ?????????? ?????????????????????????????????????? | | ??????????##?????????????+???????????????????????? | | ?????????????????????????????????????????????????? | +----------------------------------------------------+ Best States ------------- Heat Dissipation 34 Energy Generation 10 Energy Capacity 125 Matter Stores 202 Matter Capacity 300 Sight Range 16 Terrain Scan Density 10 Evasion (%) 64 Offensive Hacking 10 Defensive Hacking 10 Item Schematics ----------------- None Robot Schematics ------------------ None Fabricated ------------ Nothing Repaired ---------- Nothing Alien Tech Used ----------------- None Achievements -------------- None Challenges ------------ None Game ------ Seed MetafieldUltimateProcessor Manual? 0 Play Time 00:04:39 Cumulative 296.4 hours Start 2025.06.11 @ 12:37:40 End 2025.06.11 @ 12:48:38 Sessions 3 Manual Loads 0 Difficulty Rogue Special Mode None Game No. 182 Rogue 182 Adventurer 0 Explorer 0 Win Type - Total 4 Types 2/0/1/1/0/0/0/0/0/0 Lore% 82 Gallery% 70 Achievement% 66 Wizard Run 0 Options --------- Layout 2 ASCII 0 Keyboard 1 Movement Vi Keybinds 0 Fullscreen 1 Font 16/Tamsyn Map View 55x47 Zoom Use 0% Tactical HUD 1 Map Filters NONE Filters NONE Steam 0 RUN: ea494d5c-19bb-44d0-9f5c-8171d73051ad